bitfinex-derivatives/quotes_ETHF0:USTF0_20260305
["timestamp","ask_amount","ask_price","bid_price","bid_amount"]
[1772680579598,3.9410415,2122.6,2121.8,0.98742902]
[1772680579796,0.40769318,2122.5,2121.8,0.98742902]
[1772680580095,4.76771604,2122.6,2121.8,0.98742902]
[1772680580394,0.4077391,2122.5,2121.8,0.98742902]
[1772680580698,4.76771604,2122.6,2121.8,0.98742902]
[1772680580997,1.2344017,2122.5,2121.8,0.98742902]
[1772680581298,0.82667454,2122.5,2121.8,0.98742902]
[1772680583398,1.2347221,2122.4,2121.8,0.98742902]
[1772680583598,0.82667454,2122.4,2121.8,0.98742902]
[1772680583898,4.76771604,2122.6,2121.8,0.98742902]
[1772680584098,0.40809566,2122.5,2121.8,0.98742902]
[1772680584297,0.40809566,2122.4,2121.8,0.98742902]
[1772680590802,0.40809566,2122.4,2122.0,0.75483729]
[1772680591004,3.9410415,2122.6,2122.0,0.75483729]
[1772680591202,0.40905004,2122.5,2122.0,0.75483729]
[1772680591400,0.00525985,2122.6,2122.0,0.75483729]
[1772680591595,0.40901946,2122.5,2122.0,0.75483729]
[1772680591800,0.00525985,2122.6,2122.0,0.75483729]
[1772680592000,0.40901946,2122.5,2122.0,0.75483729]
[1772680592202,0.00525985,2122.6,2122.0,0.75483729]
[1772680592402,0.40899451,2122.5,2122.0,0.75483729]
[1772680592602,0.00525985,2122.6,2122.1,0.75483729]
[1772680592603,0.79267726,2122.6,2122.1,0.75483729]
[1772680592805,0.40899451,2122.5,2122.1,0.75483729]
[1772680593006,0.79267726,2122.6,2122.1,0.75483729]
[1772680593210,0.40899451,2122.5,2122.1,0.75483729]
[1772680593406,0.79267726,2122.6,2122.1,0.75483729]
[1772680593607,0.40899984,2122.5,2122.1,0.75483729]
[1772680593907,3.93578165,2122.7,2122.5,0.75483729]
[1772680594111,3.93578165,2122.8,2122.5,0.75483729]
[1772680594607,3.93578165,2122.9,2122.5,0.75483729]
[1772680594806,17.68178165,2123.1,2122.7,0.75483729]
[1772680595004,13.746,2123.1,2122.7,0.75483729]
[1772680595200,13.75039233,2123.1,2122.7,0.75883716]
[1772680595400,14.53780974,2123.1,2122.7,0.75883716]
[1772680596211,13.75039233,2123.1,2122.7,0.75883716]
[1772680596520,0.78741741,2123.3,2122.9,0.75483729]
[1772680597507,0.79306265,2123.3,2122.9,0.75483729]
[1772680597701,0.00564524,2123.3,2122.9,0.75483729]
[1772680598113,0.79306265,2123.3,2122.9,0.75483729]
[1772680599311,0.00564524,2123.3,2122.9,0.75483729]
[1772680600004,0.00564524,2123.3,2122.8,1.66507559]
[1772680600005,17.69178165,2123.5,2123.1,0.75483729]
[1772680600207,13.756,2123.5,2123.1,0.75483729]
[1772680600408,0.78741741,2123.4,2122.9,0.75483729]
[1772680600604,0.78741741,2123.4,2122.7,0.75883716]
[1772680600911,0.79258958,2123.4,2122.7,0.75883716]
[1772680601303,0.78741741,2123.2,2122.7,0.75883716]
[1772680603208,0.78919865,2123.4,2122.7,0.75883716]
[1772680604011,0.77933314,2123.1,2122.7,0.75883716]
[1772680604811,2.43905372,2123.2,2122.7,0.75883716]
[1772680606318,0.78290871,2123.1,2122.7,0.75883716]
[1772680607319,0.78290871,2123.1,2122.6,0.55253507]
[1772680607616,0.78741741,2122.9,2122.6,0.13335302]
[1772680607810,0.78741741,2122.9,2122.2,0.75483729]
[1772680608006,1.66507559,2123.0,2122.3,0.75483729]
[1772680608212,2.452493,2123.0,2122.3,0.75483729]
[1772680608406,1.66507559,2122.6,2122.3,0.75846604]
[1772680608612,0.78741741,2122.7,2121.7,4.16468232]
[1772680609613,0.78741741,2122.7,2121.7,4.17070917]
[1772680610513,1.66530716,2123.1,2121.9,0.23557]
[1772680610820,0.7588156,2123.0,2122.1,0.23555]
[1772680620234,0.40508728,2122.9,2122.1,0.23555]
[1772680620435,0.7588156,2123.0,2122.1,0.23555]
[1772680620636,0.40508728,2122.9,2122.1,0.23555]
[1772680620936,0.7588156,2123.0,2122.1,0.23555]
[1772680621136,0.75843587,2122.8,2122.1,0.23555]
[1772680629540,0.75843587,2122.8,2122.1,1.90085716]
[1772680636648,0.75301329,2122.9,2122.4,0.23551]
[1772680649254,0.75301329,2122.9,2122.0,0.23556]
[1772680649454,0.4058773,2122.8,2122.0,0.23556]
[1772680649654,0.75301329,2122.9,2122.0,0.23556]
[1772680649855,0.74790675,2122.7,2122.0,0.23556]
[1772680651152,0.67837297,2122.5,2121.7,0.00602685]
[1772680651353,4.62666471,2122.3,2121.7,0.00602685]
[1772680651554,0.67837297,2122.1,2121.5,0.23561]
[1772680652454,0.67837297,2122.1,2121.5,0.24030778]
[1772680653459,0.67837297,2122.1,2121.5,0.00469778]
[1772680657259,0.67837297,2122.1,2121.5,0.12271573]
[1772680661267,0.67837297,2122.1,2121.5,0.00469778]
[1772680661960,0.67837297,2122.1,2121.3,0.23563]
[1772680663061,0.67837297,2122.1,2121.3,0.24029755]
[1772680668464,0.67837297,2122.1,2121.3,1.90647505]
[1772680668465,0.67837297,2122.0,2121.3,1.90647505]
[1772680668768,0.67837297,2122.0,2121.3,2.006348]
[1772680670869,0.67837297,2122.0,2121.4,0.09809382]
[1772680672470,0.67837297,2122.0,2121.3,2.01079522]
[1772680672772,0.67837297,2122.0,2121.3,1.90647505]
[1772680676470,0.67837297,2122.0,2121.3,0.00466755]
[1772680676675,0.651252,2121.8,2121.3,0.00466755]
[1772680676870,0.65724541,2121.8,2121.3,0.00466755]
[1772680677177,0.65724541,2121.8,2121.4,0.09583137]
[1772680680375,0.651252,2122.1,2121.8,0.63095117]
[1772680680580,5.34148328,2122.0,2121.8,0.63095117]
[1772680680779,0.651252,2122.1,2121.8,0.63095117]
[1772680681381,0.65493536,2122.1,2121.8,0.63095117]
[1772680682072,0.651252,2122.3,2121.8,0.63095117]
[1772680682278,0.651252,2122.2,2121.5,1.9017975]
[1772680682579,0.651252,2122.0,2121.4,0.63095117]
[1772680683086,0.651252,2122.0,2121.3,2.30179622]
[1772680683087,0.65669037,2122.0,2121.3,2.30179622]
[1772680684386,0.65669037,2122.0,2121.3,0.63561872]
[1772680684583,0.65669037,2122.0,2121.3,0.00466755]
[1772680690888,0.651252,2121.8,2121.3,0.63561872]
[1772680691383,0.651252,2121.8,2121.3,0.00466755]
[1772680692789,0.651252,2121.8,2121.3,1.67084505]
[1772680694390,0.651252,2121.8,2121.3,2.30179622]
[1772680696885,0.651252,2121.8,2121.3,0.00466755]
[1772680697192,0.651252,2121.6,2121.1,0.23566]
[1772680697990,0.651252,2121.6,2121.1,0.24061141]
[1772680698188,0.651252,2121.6,2121.1,0.00495141]
[1772680698394,0.651252,2121.5,2121.1,0.00495141]
[1772680698591,0.651252,2121.5,2120.9,2.29712867]
[1772680699687,0.651252,2121.5,2120.9,0.00589456]
[1772680699888,0.62252408,2121.3,2120.5,7.58454785]
[1772680700088,0.62252408,2121.1,2120.5,1.6661775]
[1772680700387,0.62252408,2121.1,2120.5,2.27472906]
[1772680700989,0.62252408,2121.1,2120.5,2.28002125]
[1772680701290,0.62252408,2121.1,2120.5,0.00529219]
[1772680702683,0.62252408,2120.9,2120.5,0.00529219]
[1772680702889,0.62252408,2120.9,2120.3,2.51047906]
[1772680702890,0.62252408,2120.7,2120.3,0.60855156]
[1772680703087,0.62252408,2120.7,2120.2,0.60855156]
[1772680703286,0.62252408,2120.7,2120.1,0.87083851]
[1772680703591,0.62252408,2120.7,2120.0,0.60855156]
[1772680703993,1.6661775,2120.6,2120.0,0.61426903]
[1772680704189,0.62252408,2120.3,2119.8,0.60855156]
[1772680705089,19.24946924,2121.0,2119.4,9.158]
[1772680705090,13.635,2121.0,2120.0,5.80042]
[1772680705290,0.68054874,2121.4,2120.9,1.6661775]
[1772680705490,0.68054874,2121.3,2120.5,1.6661775]
[1772680705892,0.67338322,2120.9,2120.3,0.23575]
[1772680706395,0.67738518,2120.9,2120.3,0.23575]
[1772680707092,0.67738518,2120.9,2120.3,1.9019275]
[1772680707293,0.01962305,2120.9,2120.5,1.6661775]
[1772680707697,0.01962305,2120.9,2120.3,0.23575]
[1772680707698,0.69645728,2120.9,2120.3,1.9019275]
[1772680713899,0.69645728,2120.9,2120.1,1.6661775]
[1772680716201,0.68491182,2120.5,2119.9,1.6661775]
[1772680716400,0.68491182,2120.5,2119.8,0.2358]
[1772680717503,0.68491182,2120.5,2119.8,0.23934423]
[1772680717693,0.68495407,2120.3,2119.8,0.00354423]
[1772680718099,0.68495407,2120.3,2119.5,1.6661775]
[1772680718300,0.68103917,2120.1,2119.5,1.6661775]
[1772680719305,0.68103917,2120.1,2119.5,1.67018318]
[1772680721305,0.69666026,2120.1,2119.5,1.67018318]
[1772680724005,0.6806251,2119.9,2119.3,1.9020375]
[1772680725105,0.6806251,2119.9,2119.3,1.90619026]
[1772680726507,0.6806251,2119.9,2119.5,1.6661775]
[1772680727407,1.09e-06,2119.8,2119.5,1.6661775]
[1772680728202,0.6806251,2119.9,2119.5,1.6661775]
[1772680728400,0.66978461,2119.9,2119.7,1.6661775]
[1772680728604,0.64315201,2120.6,2119.5,0.05657342]
[1772680729103,0.5862493,2120.4,2119.5,0.05657342]
[1772680732104,0.5862493,2120.4,2119.4,0.52851192]
[1772680732304,0.5862493,2120.3,2119.4,0.52851192]
[1772680733312,0.5862493,2120.3,2119.3,0.24001276]
[1772680733610,0.5862493,2120.1,2119.3,0.00415276]
[1772680734011,0.5862493,2119.7,2118.9,0.23591]
[1772680735010,0.5862493,2119.7,2118.9,0.24116376]
[1772680737509,0.5862493,2119.7,2118.9,0.77187447]
[1772680738108,0.5862493,2119.7,2118.9,0.24116376]
[1772680740109,0.5862493,2119.2,2118.4,0.23595]
[1772680740807,0.5862493,2118.8,2117.8,0.53326371]
[1772680741011,0.5862493,2118.6,2117.7,0.5331909]
[1772680741212,0.58966799,2118.6,2117.7,0.53735109]
[1772680742214,0.58966799,2118.6,2117.9,0.52136621]
[1772680743515,0.58966799,2118.6,2117.8,0.23603]
[1772680743817,0.58966799,2118.6,2117.7,0.00416019]
[1772680744115,0.58966799,2118.6,2117.7,0.52475243]
[1772680745314,0.58966799,2118.6,2117.8,0.51988244]
[1772680745916,0.58966799,2118.6,2117.7,0.24020019]
[1772680746212,0.58966799,2118.6,2117.7,0.00416019]
[1772680747819,14.04366799,2118.6,2117.7,0.52270239]
[1772680748024,0.5862493,2118.5,2117.7,0.00416019]
[1772680748923,0.5862493,2118.5,2117.7,0.51403053]
[1772680749223,0.5862493,2118.5,2117.7,0.00416019]
[1772680749420,0.5862493,2118.5,2117.2,0.51397333]
[1772680749616,0.5862493,2118.3,2117.1,0.2361]
[1772680749819,0.5862493,2118.3,2117.1,0.74946366]
[1772680750224,0.5862493,2118.3,2117.1,0.51336366]
[1772680750518,0.5862493,2118.3,2117.1,0.51843364]
[1772680751122,0.5862493,2118.3,2117.1,0.00506998]
[1772680751320,0.5862493,2118.3,2116.8,0.51382486]
[1772680752226,0.5862493,2118.3,2116.8,0.5159804]
[1772680752819,0.5862493,2118.3,2117.0,0.5118017]
[1772680752820,13.449,2118.3,2117.0,0.5118017]
[1772680753124,0.5862493,2118.2,2117.0,0.5118017]
[1772680753717,0.5862493,2118.2,2117.2,0.51116475]
[1772680755129,0.5862493,2118.2,2117.1,0.50218279]
[1772680762935,0.55221701,2118.1,2117.1,0.50218279]
[1772680764242,0.55221701,2118.0,2117.1,0.50218279]
[1772680767144,0.57187256,2117.9,2117.1,0.50218279]
[1772680768039,0.57187256,2117.8,2117.1,0.50218279]
[1772680771442,17.9391643,2117.9,2117.1,0.50218279]
[1772680771745,0.57187256,2117.8,2117.1,0.50218279]
[1772680772246,0.57187256,2117.8,2116.8,0.00215554]
[1772680772247,0.97267707,2117.7,2116.9,0.512292]
[1772680772448,4.92098506,2117.6,2116.8,0.00215554]
[1772680772645,0.57187256,2117.4,2116.8,0.00215554]
[1772680774443,0.57187256,2117.2,2116.7,0.511788]
[1772680776852,0.57187256,2117.2,2116.3,0.51078221]
[1772680777852,0.57187256,2117.2,2116.5,0.50936828]
[1772680779156,3.94829174,2117.4,2116.7,0.50889803]
[1772680779157,4.5201643,2117.4,2116.7,0.50889803]
[1772680779454,0.40139081,2117.3,2116.7,0.50889803]
[1772680779654,0.57187256,2117.3,2116.7,0.50889803]
[1772680782951,0.57187256,2117.3,2116.6,0.23616]
[1772680783255,0.57187256,2117.3,2116.5,0.51268269]
[1772680783256,0.57187256,2117.3,2116.1,6.15458035]
[1772680783458,0.57187256,2117.3,2116.2,0.51268269]
[1772680784961,0.57187256,2117.3,2116.4,0.50973773]
[1772680785460,0.57187256,2117.3,2116.6,0.50971611]
[1772680793664,0.57187256,2117.3,2116.5,0.23617]
[1772680793864,0.57187256,2117.3,2116.5,0.74712231]
[1772680794563,0.57187256,2117.3,2116.6,0.511082]
[1772680795467,0.57187256,2117.3,2116.5,0.23617]
[1772680795968,0.57187256,2117.3,2116.5,0.74649846]
[1772680796166,0.57187256,2117.3,2116.6,0.50746606]
[1772680798168,0.5702862,2117.2,2116.6,0.50746606]
[1772680798570,0.5702862,2117.2,2116.5,0.74324301]
[1772680799163,0.5702862,2117.2,2116.5,0.23617]
[1772680799870,0.5702862,2117.2,2116.5,0.74252421]
[1772680801368,0.5702862,2117.2,2116.5,0.23617]
[1772680801369,0.5702862,2117.1,2116.5,0.23617]
[1772680801569,0.57396635,2117.1,2116.2,0.52121045]
[1772680801764,0.5702862,2116.8,2116.1,0.75709042]
[1772680801961,0.5702862,2116.9,2116.4,0.53177862]
[1772680802165,0.5702862,2116.7,2116.0,0.53177862]
[1772680802362,0.5702862,2116.7,2115.7,0.53177862]
[1772680802768,0.5702862,2116.7,2115.9,0.53144249]
[1772680803472,0.5702862,2116.7,2116.1,0.53141736]
[1772680804368,4.51857794,2116.9,2116.1,0.53141736]
[1772680804572,4.52225809,2117.1,2116.5,0.53212761]
[1772680804771,0.96141291,2117.0,2116.5,0.53212761]
[1772680804973,0.5702862,2117.0,2116.5,0.53212761]
[1772680805170,0.5702862,2116.9,2116.5,0.53212761]
[1772680805766,0.5702862,2117.0,2116.5,0.53212761]
[1772680805972,0.57396635,2117.1,2116.5,0.53212761]
[1772680806172,0.5702862,2117.0,2116.5,0.53212761]
[1772680806973,0.57396635,2117.1,2116.6,0.50886023]
[1772680807172,0.00368015,2117.1,2116.7,0.50886023]
[1772680807472,0.5702862,2117.2,2116.7,0.50886023]
[1772680808375,0.57587916,2117.2,2116.7,0.51221466]
[1772680808875,0.00559296,2117.2,2116.7,0.51221466]
[1772680809576,0.5702862,2117.4,2116.9,0.48228414]
[1772680809774,4.51857794,2117.6,2116.9,0.48228414]
[1772680810076,13.568,2117.8,2117.1,0.56698235]
[1772680810272,0.5702862,2117.9,2117.3,0.56698235]
[1772680810573,0.00456703,2117.9,2117.3,0.56698235]
[1772680810774,0.57485323,2117.9,2117.3,0.56698235]
[1772680811169,0.00456703,2117.9,2117.5,0.56698235]
[1772680811366,0.5702862,2118.2,2117.5,0.56698235]
[1772680811768,4.51857794,2118.2,2117.5,0.56698235]
[1772680811968,4.51857794,2118.4,2117.6,0.23605]
[1772680812179,0.5702862,2118.5,2117.7,0.56698235]
[1772680812473,0.5702862,2118.7,2118.1,0.56698235]
[1772680812782,4.51857794,2119.1,2118.1,0.56698235]
[1772680812974,0.5702862,2119.0,2118.1,0.56698235]
[1772680813579,0.5750806,2119.0,2118.1,0.56698235]
[1772680814481,0.5750806,2119.0,2118.3,0.56698235]
[1772680814773,0.5750806,2119.0,2118.3,0.57170036]
[1772680815581,0.0047944,2119.0,2118.3,0.57170036]
[1772680816082,0.5750806,2119.0,2118.3,0.57170036]
[1772680819281,0.0047944,2119.0,2118.5,0.5904214]
[1772680819485,0.61120971,2119.0,2118.5,0.5904214]
[1772680819983,0.61120971,2119.0,2118.4,0.5904214]
[1772680822081,0.61120971,2119.0,2118.3,0.00471801]
[1772680822291,0.61120971,2119.0,2117.7,0.5904214]
[1772680822491,0.61120971,2119.0,2117.9,0.5904214]
[1772680823379,0.61120971,2119.0,2117.9,0.59385454]
[1772680827196,0.56473453,2118.9,2117.9,0.59385454]
[1772680828296,0.56473453,2118.9,2118.1,0.57034589]
[1772680831395,0.56473453,2118.9,2117.9,2.41336961]
[1772680831396,0.56473453,2118.9,2118.3,0.57034589]
[1772680832186,0.56473453,2118.9,2118.0,0.57034589]
[1772680832391,0.0047944,2119.0,2117.5,0.57034589]
[1772680832392,0.56473453,2118.7,2117.5,0.57034589]
[1772680832698,0.56473453,2118.7,2117.7,0.57034589]
[1772680833500,0.56473453,2118.7,2117.7,0.57387848]
[1772680833699,0.56473453,2118.7,2117.7,0.00353259]
[1772680834401,0.56473453,2118.7,2117.7,0.57387848]
[1772680838302,0.56473453,2118.6,2117.7,0.57387848]
[1772680839304,0.56473453,2118.5,2117.7,0.00353259]
[1772680839897,0.56473453,2118.5,2117.7,0.57387848]
[1772680844406,0.56473453,2118.5,2117.9,0.57034589]
[1772680844607,4.51302627,2118.6,2117.9,0.57034589]
[1772680845105,0.56473453,2118.5,2117.9,0.57034589]
[1772680846100,4.51302627,2118.7,2117.9,0.57034589]
[1772680846308,4.51302627,2118.7,2117.7,0.00353259]
[1772680846309,0.56473453,2118.6,2118.1,0.57034589]
[1772680847406,0.56473453,2118.6,2118.0,0.80635589]
[1772680847605,0.56473453,2118.6,2118.1,0.57034589]
[1772680848810,0.56473453,2118.6,2118.0,0.8090592]
[1772680849212,0.56473453,2118.6,2118.1,0.5730492]
[1772680849616,0.56473453,2118.6,2117.4,5.91837035]
[1772680849913,0.06207494,2117.6,2116.1,0.59969453]
[1772680850109,0.06207494,2117.6,2116.3,0.59985343]
[1772680850309,0.06207494,2117.6,2116.5,0.59985343]
[1772680850711,0.06207494,2117.6,2116.8,0.59985343]
[1772680851211,0.06207494,2117.6,2116.9,0.59961621]
[1772680851708,5.59414139,2117.7,2117.1,0.59961621]
[1772680851913,0.16465581,2118.1,2117.3,0.59961621]
[1772680852709,0.17950444,2118.0,2117.3,0.59961621]
[1772680853110,0.17950444,2118.0,2117.4,0.59222966]
[1772680856115,5.59410879,2118.2,2117.6,0.60020013]
[1772680856315,5.59410879,2118.1,2117.6,0.60020013]
[1772680856513,0.13835719,2118.3,2117.6,0.60020013]
[1772680856715,0.13835719,2118.3,2117.8,0.60020013]
[1772680858908,4.05339645,2118.4,2117.9,0.60077416]
[1772680859108,5.59769286,2118.3,2117.9,0.60077416]
[1772680859314,5.59769286,2118.2,2117.9,0.60077416]
[1772680859517,0.10510471,2118.5,2118.1,0.60077416]
[1772680859711,5.70494375,2118.5,2118.1,0.60569164]
[1772680861117,0.08349264,2118.4,2118.1,0.00491748]
[1772680861313,0.08349264,2118.4,2118.1,0.57796668]
[1772680861513,0.08349264,2118.4,2117.7,0.5730492]
[1772680861715,0.08349264,2118.4,2117.8,0.5730492]
[1772680861912,0.08349264,2118.4,2116.2,5.81076]
[1772680861913,0.2495618,2118.0,2116.4,0.5730492]
[1772680862212,0.2495618,2117.7,2116.4,0.5730492]
[1772680862613,0.2495618,2117.7,2116.4,0.57609032]
[1772680862814,0.56728127,2117.5,2116.4,0.57609032]
[1772680863016,0.57123668,2117.3,2116.4,0.57609032]
[1772680872931,0.57123668,2117.3,2116.4,0.00304112]
[1772680873425,0.42756241,2117.1,2116.4,0.00304112]
[1772680878240,0.42756241,2117.1,2116.5,0.5730492]
[1772680878433,0.20226658,2117.3,2116.5,0.5730492]
[1772680878634,0.12107032,2117.2,2116.5,0.5730492]
[1772680879138,0.11330797,2117.4,2116.5,0.5730492]
[1772680879333,0.11330797,2117.4,2116.6,0.69672749]
[1772680879533,0.11835449,2117.5,2116.6,0.69672749]
[1772680881740,0.00504652,2117.5,2116.8,0.69672749]
[1772680881939,5.76456891,2117.7,2117.0,0.69672749]
[1772680882130,0.08140011,2118.1,2117.2,0.69672749]
[1772680882941,0.08634854,2118.1,2117.2,0.69672749]
[1772680883141,0.00494843,2118.1,2117.2,0.69672749]
[1772680883342,0.09998334,2118.1,2117.2,0.69672749]
[1772680884636,5.98543316,2118.1,2117.2,0.69672749]
[1772680884842,5.88544982,2118.0,2117.2,0.69672749]
[1772680885043,5.88544982,2117.9,2117.2,0.69672749]
[1772680885242,0.07385732,2118.0,2117.2,0.69672749]
[1772680886141,0.06861454,2118.1,2117.2,0.69672749]
[1772680887436,3.94223273,2118.0,2117.2,0.69672749]
[1772680887736,5.88756879,2117.9,2117.2,0.69672749]
[1772680887938,9.82980152,2117.8,2117.2,0.69672749]
[1772680888139,5.88756879,2117.7,2117.2,0.69672749]
[1772680888441,6.47441508,2117.6,2116.7,0.60366205]
[1772680888640,5.88756879,2117.5,2116.7,0.60366205]
[1772680888944,0.58684629,2117.6,2116.7,0.60366205]
[1772680891149,0.58684629,2117.6,2116.9,0.60366205]
[1772680891550,0.58684629,2117.8,2116.9,0.60366205]
[1772680891750,6.43300385,2117.7,2116.9,0.60366205]
[1772680891950,5.84615756,2117.6,2116.9,0.60366205]
[1772680892552,3.94223273,2117.9,2116.9,0.60366205]
[1772680892748,4.52907902,2117.9,2117.1,0.60366205]
[1772680892943,5.84683948,2117.8,2117.1,0.60366205]
[1772680893353,6.43368577,2117.8,2117.1,0.60366205]
[1772680893555,5.84683948,2117.7,2117.1,0.60366205]
[1772680893855,6.43368577,2117.7,2117.1,0.60366205]
[1772680894054,6.43368577,2117.6,2117.1,0.60366205]
[1772680894255,0.58684629,2117.8,2117.1,0.60366205]
[1772680894451,5.8475634,2117.7,2117.1,0.60366205]
[1772680894652,5.8475634,2117.6,2117.1,0.60366205]
[1772680894853,0.58684629,2117.8,2117.1,0.60366205]
[1772680895055,5.84810373,2117.7,2117.1,0.60366205]
[1772680895859,6.43495002,2117.7,2117.1,0.60366205]
[1772680896058,5.84810373,2117.6,2117.1,0.60366205]
[1772680896858,0.58684629,2117.7,2117.1,0.60366205]
[1772680897058,5.8465325,2117.6,2117.1,0.60366205]
[1772680898659,0.58684629,2117.8,2117.1,0.60366205]
[1772680898860,5.86646935,2117.7,2117.1,0.60366205]
[1772680899958,6.45331564,2117.7,2117.1,0.60366205]
[1772680900157,5.86646935,2117.6,2117.1,0.60366205]
[1772680900760,6.45331564,2117.6,2117.1,0.60366205]
[1772680900958,0.58684629,2117.6,2117.1,0.60366205]
[1772680905272,5.87050694,2117.5,2117.1,0.60366205]
[1772680905471,0.58684629,2117.4,2117.1,0.60366205]
[1772680905970,0.58684629,2117.7,2117.1,0.60366205]
[1772680906169,0.58684629,2117.5,2117.1,0.60366205]
[1772680906968,0.58684629,2117.7,2117.1,0.60366205]
[1772680907169,0.58684629,2117.5,2117.1,0.60366205]
[1772680907868,0.58684629,2117.7,2117.1,0.60366205]
[1772680908064,5.87503793,2117.6,2117.1,0.60366205]
[1772680908263,5.87503793,2117.5,2117.1,0.60366205]
[1772680908470,3.94223273,2117.7,2117.1,0.60366205]
[1772680908771,3.94223273,2117.7,2117.2,0.2361]
[1772680908967,5.87796924,2117.7,2117.3,0.59151652]
[1772680909166,5.87796924,2117.6,2117.3,0.59151652]
[1772680909368,4.53636285,2117.9,2117.3,0.59151652]
[1772680909565,0.59413012,2117.7,2117.3,0.59151652]
[1772680909767,5.82102376,2117.6,2117.3,0.59151652]
[1772680910371,0.59413012,2117.8,2117.3,0.59151652]
[1772680910571,5.8215093,2117.7,2117.3,0.59151652]
[1772680912070,5.33881105,2117.7,2117.4,0.23607]
[1772680912280,0.00494843,2118.1,2117.5,0.59151652]
[1772680912479,0.60481231,2118.1,2117.5,0.59151652]
[1772680913269,0.60481231,2118.1,2117.7,0.08059003]
[1772680917082,0.60048818,2118.1,2117.8,0.14979994]
[1772680920280,0.60048818,2118.1,2117.7,0.14086048]
[1772680920684,0.60048818,2118.1,2117.3,2.04752481]
[1772680920886,0.60048818,2118.1,2117.4,0.37550489]
[1772680921088,0.59413012,2117.9,2117.3,0.37551403]
[1772680921288,0.59413012,2117.9,2117.2,0.2361]
[1772680921583,0.59413012,2117.8,2117.2,0.2361]
[1772680922288,0.59413012,2117.8,2117.2,0.62639064]
[1772680924584,0.59413012,2117.8,2117.3,0.39192605]
[1772680926787,8.43e-06,2118.1,2117.5,0.3875921]
[1772680926987,0.59413855,2118.1,2117.5,0.3875921]
[1772680927287,0.59413855,2118.1,2117.4,0.23607]
[1772680927684,0.59413855,2118.1,2117.4,0.62366673]
[1772680927885,0.59413855,2118.1,2117.5,0.38593304]
[1772680928087,0.59413855,2118.1,2117.6,0.23605]
[1772680928285,0.59413855,2118.1,2117.7,0.38538841]
[1772680928587,0.59413012,2118.6,2117.8,0.82754652]
[1772680928788,0.59413012,2118.4,2117.8,0.82754652]
[1772680929483,0.59802531,2118.4,2117.8,0.82754652]
[1772680930488,0.59802531,2118.4,2117.9,0.59151652]
[1772680930683,0.59802531,2118.4,2117.9,0.59506214]
[1772680931188,0.00389519,2118.4,2117.9,0.59506214]
[1772680931388,0.59413012,2118.3,2117.9,0.59506214]
[1772680931688,0.59413012,2118.3,2117.9,0.00354562]
[1772680932487,0.59413012,2118.3,2117.5,0.59151652]
[1772680933390,0.59413012,2118.3,2117.5,0.59606465]
[1772680934290,0.00389519,2118.4,2117.5,0.59606465]
[1772680934291,0.59413012,2118.1,2117.5,0.59606465]
[1772680936588,0.00389519,2118.4,2117.7,0.59151652]
[1772680936589,0.59413012,2118.3,2117.7,0.59151652]
[1772680936789,5.97116087,2118.2,2117.7,0.59151652]
[1772680936989,0.59413012,2118.2,2117.7,0.59151652]
[1772680937489,0.59802531,2118.4,2117.9,0.59151652]
[1772680939394,0.59802531,2118.4,2117.8,0.23603]
[1772680939395,0.59802531,2118.4,2117.8,0.86258176]
[1772680940295,0.00389519,2118.4,2117.9,0.62655176]
[1772680940491,0.68758292,2119.2,2118.4,0.23596]
[1772680940699,0.50287851,2119.2,2118.5,0.18468084]
[1772680940991,6.21470231,2120.1,2118.5,0.39551034]
[1772680940992,0.10200093,2119.0,2118.5,0.39551034]
[1772680941197,0.62288302,2119.3,2118.8,0.58339737]
[1772680941397,0.00358551,2119.3,2118.9,0.58339737]
[1772680941695,20.87676856,2120.5,2118.9,0.58339737]
[1772680941696,0.62288302,2120.5,2119.3,0.57981186]
[1772680941994,0.62288302,2120.0,2119.3,0.57981186]
[1772680942295,0.62288302,2120.0,2119.4,0.62655176]
[1772680942496,0.62288302,2119.9,2119.4,0.00606131]
[1772680942794,0.62288302,2119.7,2119.1,0.62655176]
[1772680942994,0.62288302,2119.7,2118.9,0.62655176]
[1772680943193,3.89422816,2119.6,2118.9,0.62655176]
[1772680943394,0.62288302,2119.6,2118.9,0.62655176]
[1772680943788,0.00476169,2120.0,2119.1,0.62655176]
[1772680943789,2.78501514,2119.5,2119.1,0.62655176]
[1772680943986,0.62288302,2119.8,2119.1,0.62655176]
[1772680944185,2.78501514,2119.9,2119.1,0.62655176]
[1772680944792,3.40789816,2119.9,2119.1,0.62655176]
[1772680945394,0.62288302,2119.8,2119.1,0.62655176]
[1772680946198,0.95127563,2119.6,2119.0,1.24662304]
[1772680946698,0.95127563,2119.5,2119.0,1.24662304]
[1772680947493,3.73629077,2119.4,2119.0,1.24662304]
[1772680947698,0.95127563,2119.4,2119.0,1.24662304]
[1772680948093,0.95127563,2119.4,2119.0,0.2359]
[1772680948294,0.95127563,2119.4,2118.9,1.01510087]
[1772680948295,0.95127563,2119.2,2118.9,1.01510087]
[1772680948502,2.78501514,2119.3,2118.9,1.01510087]
[1772680948696,0.95127563,2119.2,2118.9,0.00437783]
[1772680948899,0.95127563,2119.2,2118.6,9.72572304]
[1772680949193,0.95127563,2119.2,2118.7,1.01072304]
[1772680949798,0.95127563,2119.2,2118.7,1.01440899]
[1772680950301,3.73629077,2119.2,2118.7,1.01440899]
[1772680950500,0.95127563,2119.1,2118.7,1.01440899]
[1772680952395,2.78501514,2119.2,2118.7,1.01440899]
[1772680953597,3.73629077,2119.2,2118.7,1.01440899]
[1772680953998,7.32191073,2119.2,2118.7,1.01440899]
[1772680954200,3.73629077,2119.2,2118.7,1.01440899]
[1772680954700,8.27318636,2119.2,2118.7,1.01440899]
[1772680958106,0.95127563,2119.1,2118.7,1.01440899]
[1772680958309,5.48817122,2119.1,2118.7,1.01440899]
[1772680958507,0.95127563,2119.0,2118.7,8.76668595]
[1772680958806,0.95127563,2118.9,2118.7,8.76668595]
[1772680959007,0.95127563,2119.0,2118.7,5.39402493]
[1772680959406,4.53689559,2118.9,2118.7,5.39402493]
[1772680959602,0.95127563,2119.0,2118.7,5.39402493]
[1772680959905,4.53689559,2119.0,2118.7,5.39402493]
[1772680960106,3.96094134,2119.0,2118.8,1.01072304]
[1772680960500,3.96094134,2118.9,2118.8,1.01072304]
[1772680960806,3.73629077,2119.1,2118.8,1.01072304]
[1772680961005,3.96094134,2119.0,2118.8,1.01072304]
[1772680961206,3.73629077,2119.1,2118.8,1.01072304]
[1772680961406,3.96094134,2119.0,2118.8,1.01072304]
[1772680961606,3.73629077,2119.1,2118.8,1.01072304]
[1772680962508,3.96094134,2118.9,2118.8,1.01072304]
[1772680962910,3.96094134,2118.9,2118.7,4.38614795]
[1772680963310,3.96094134,2118.9,2118.7,5.39687099]
[1772680964009,3.96094134,2118.9,2118.8,1.01072304]
[1772680964201,2.41327506,2120.0,2118.2,3.94741496]
[1772680964202,0.95127563,2118.7,2118.2,3.94741496]
[1772680964405,0.95127563,2118.7,2118.1,1.01072304]
[1772680964606,0.95127563,2118.5,2118.1,1.01072304]
[1772680965308,4.91221697,2118.4,2118.1,1.01072304]
[1772680965610,3.96094134,2118.4,2118.1,1.01072304]
[1772680965904,0.95127563,2118.1,2117.9,0.23601]